Cogmind - Beta 9.1 @@@ ROGUE MODE // 2019.11.01 @ 20:05:05 Player: fartblaster Result: Destroyed by G-47 Trooper with Particle Gun Performance ------------- Evolutions (1) 500 Regions Visited (3) 600 Robots Destroyed (14) 70 Value Destroyed (349) 349 Prototype IDs (0) 0 Alien Tech Used (0) 0 Bonus (0) 0 TOTAL SCORE: 1519 Bonus ------- None Cogmind --------- Core Integrity 0/400 Matter 163/300 Energy 265/265 System Corruption 0% Temperature Cool (9) Location -9/Mines Parts ------- Power (1) Improved Ion Engine Propulsion (2) Light Treads Utility (3) Large Storage Unit Improved Terrain Scanner Improved Power Shielding Weapon (3) Inventory (10) Ion Engine Improved Heat Sink Medium Battery (200) Large Matter Pod (0) Improved Targeting Computer Utility Shielding Peak State ------------ Power Light Deuterium Engine Propulsion Light Treads Light Treads Utility Large Storage Unit Improved Terrain Scanner Improved Power Shielding Weapon EM Shotgun Beam Rifle Grenade Launcher Inventory Ion Engine Improved Ion Engine Light Treads Light Treads Improved Heat Sink Medium Battery Large Matter Pod Utility Shielding [Rating: 17] Favorites ----------- Power Light Deuterium Engine Engine Light Deuterium Engine Propulsion Light Treads Treads Light Treads Utility Improved Terrain Scanner Device Improved Terrain Scanner Storage Small Storage Unit Protection Improved Power Shielding Weapon Beam Rifle Energy Gun Beam Rifle Ballistic Gun Assault Rifle Launcher Grenade Launcher Build | -11 -10 -9 -9 ------- Run | Scr Mat Mat Min Slots Evolved 2 | . . 2 . Power . | . . . . Propulsion . | . . . . Utility 1 | . . 1 . Weapon 1 | . . 1 . Parts Attached 29 | 6 5 8 10 Power 3 | 1 . 1 1 Engine 3 | 1 . 1 1 Core . | . . . . Reactor . | . . . . Propulsion 4 | 2 . . 2 Treads 4 | 2 . . 2 Leg . | . . . . Wheel . | . . . . Hover . | . . . . Flight . | . . . . Utility 14 | 1 3 5 5 Device 5 | . 2 1 2 Storage 4 | 1 1 2 . Processor . | . . . . Hackware . | . . . . Protection 5 | . . 2 3 Artifact . | . . . . Weapon 8 | 2 2 2 2 Energy Gun 4 | 1 2 1 . Energy Cannon . | . . . . Ballistic Gun 3 | 1 . . 2 Ballistic Cannon . | . . . . Launcher 1 | . . 1 . Special Weapon . | . . . . Impact Weapon . | . . . . Slashing Weapon . | . . . . Piercing Weapon . | . . . . Special Melee Weapon . | . . . . Unidentified Prototypes . | . . . . Parts Lost 11 | . . 1 10 Power 1 | . . . 1 Propulsion 3 | . . . 3 Utility 1 | . . . 1 Weapon 6 | . . 1 5 Highest Loss Streak 9 | . . 1 9 Average Slot Usage (%) 90 | . 98 94 58 Engine 11 | . 14 11 6 Treads 22 | . 28 22 11 Device 9 | . 11 11 2 Storage 13 | . 15 12 11 Protection 7 | . . 9 17 Energy Gun 16 | . 15 21 3 Ballistic Gun 5 | . 12 . 4 Launcher 3 | . . 6 2 Naked Turns . | . . . . Heaviest Build 33 | 13 17 33 29 Greatest Support 40 | 40 40 40 40 Greatest Overweight (x) 6 | 3 . . 6 Average Overweight (x) . | . . . 1 Largest Inventory Capacity 10 | 6 6 10 10 Average Capacity 7 | 5 6 8 10 Most Carried 10 | 2 6 10 10 Average Carried 6 | 1 5 7 8 Final Capacity 10 | 6 6 10 10 Final Carried 10 | 2 6 10 6 Class Distribution -------------------- 100% | Mutant Dominant Class ---------------- Mutant | -10/Materials Mutant | -9/Materials Mutant | -9/Mines Resources | -11 -10 -9 -9 ----------- Run | Scr Mat Mat Min Matter Collected 435 | 154 90 134 57 Remotely . | . . . . Salvage Created 354 | . 90 181 83 Parts 26 | . 11 10 5 Haulers Intercepted . | . . . . Recyclers Shooed . | . . . . Parts Field Recycled . | . . . . Retrieved Matter . | . . . . Parts Self-Destructed . | . . . . Prevented . | . . . . Kills | -11 -10 -9 -9 ------- Run | Scr Mat Mat Min Combat Hostiles Destroyed 13 | . 4 5 4 Guns 9 | . 4 2 3 AOE 4 | . . 3 1 Classes Destroyed 4 | . 3 1 . Watcher 1 | . 1 . . Swarmer 6 | . 3 . 3 Grunt 5 | . 1 3 1 Sentry 2 | . . 2 . Best Kill Streak 3 | . 3 3 2 Combat Bots Only 3 | . 3 3 2 Max Kills in Single Turn 1 | . 1 1 1 Gunslinging . | . . . . Exploded 1 | . . 1 1 Melee . | . . . . Uniques/NPCs Destroyed . | . . . . Combat | -11 -10 -9 -9 -------- Run | Scr Mat Mat Min Damage Taken 1477 | . 79 301 1097 Core 409 | . . 72 337 Absorbed by Shields . | . . . . Core Remaining (%) 100 | 100 100 . . Volleys Fired 56 | . 11 21 24 Largest 2 | . 2 2 2 Hottest 101 | . 76 101 101 Shots Fired 81 | . 22 30 29 Gun 71 | . 22 26 23 Cannon . | . . . . Launcher 10 | . . 4 6 Special . | . . . . Kinetic 21 | . 11 . 10 Thermal 22 | . 4 13 5 Explosive 10 | . . 4 6 Electromagnetic 28 | . 7 13 8 Robot Hit Streak 16 | . 7 16 4 Robot Miss Streak 4 | . 3 4 4 Penetration Max . | . . . . Secondary Targets . | . . . . Shots Hit Robots 42 | . 14 21 7 Core Hits 30 | . 7 15 8 Critical Hits . | . . . . Critical Kills . | . . . . Critical Parts Destroyed . | . . . . Melee Attacks . | . . . . Impact . | . . . . Slashing . | . . . . Piercing . | . . . . Sneak Attacks . | . . . . Combat Hostiles . | . . . . Follow-up Attacks . | . . . . Damage Inflicted 871 | . 205 392 274 Guns 388 | . 135 213 40 Cannons . | . . . . Explosions 472 | . 70 179 223 Melee . | . . . . Ramming 11 | . . . 11 Kinetic 76 | . 36 . 40 Thermal 214 | . 113 101 . Explosive 402 | . . 179 223 Electromagnetic 168 | . 56 112 . Impact . | . . . . Slashing . | . . . . Piercing . | . . . . Highest Corruption . | . . . . Average Corruption . | . . . . Corruption Purged . | . . . . Overload Shots . | . . . . Overflow Damage . | . . . . Projectiles . | . . . . Explosions . | . . . . Melee . | . . . . Knockbacks . | . . . . Impact . | . . . . Kinetic . | . . . . Secondary . | . . . . Self-Inflicted Damage 14 | . . 14 . Shots 1 | . . 1 . Rammed 2 | . . . 2 Targets Rammed 2 | . . . 2 Kicked . | . . . . Crushed . | . . . . Highest Temperature 171 | . 66 144 171 Average Temperature 72 | . 34 60 103 Received Heat Transfer 471 | . 6 105 360 Siege Activations . | . . . . Robots Corrupted . | . . . . Combat Hostiles . | . . . . Parts Fried . | . . . . Impact Corruptions . | . . . . Robots Melted . | . . . . Combat Hostiles . | . . . . Parts Melted . | . . . . Heat Transferred 420 | . 161 259 . Parts Sabotaged . | . . . . Parts Stolen . | . . . . Parts Stripped . | . . . . Power Chain Reactions 1 | . 1 . . Missiles Intercepted . | . . . . Alert | -11 -10 -9 -9 ------- Run | Scr Mat Mat Min Peak Influence 150 | . 122 150 40 Average Influence 37 | . 51 36 23 Maximum Alert Level . | . . . . Low Security (%) 100 | . . . . Level 1 . | . . . . Level 2 . | . . . . Level 3 . | . . . . Level 4 . | . . . . Level 5 . | . . . . High Security . | . . . . Max Security . | . . . . Squads Dispatched 2 | . 2 . . Investigation 1 | . 1 . . Extermination . | . . . . Reinforcement 1 | . 1 . . Assault . | . . . . Garrison . | . . . . Intercept . | . . . . Construction Impeded . | . . . . Haulers Reinforced . | . . . . Stealth | -11 -10 -9 -9 --------- Run | Scr Mat Mat Min Distress Signals 2 | . 1 1 . Communications Jammed . | . . . . Distress Signals . | . . . . Times Spotted 20 | . 6 8 6 Peak Tracking Total 5 | . 4 3 5 Tactical Retreats 2 | . . . 2 Traps | -11 -10 -9 -9 ------- Run | Scr Mat Mat Min Traps Triggered 1 | . 1 . . Indirectly . | . . . . Trap Hack Attempts . | . . . . Triggered . | . . . . Disarmed . | . . . . Reprogrammed . | . . . . Reused . | . . . . Traps Extracted . | . . . . Installed . | . . . . Triggered . | . . . . Machines | -11 -10 -9 -9 ---------- Run | Scr Mat Mat Min Machines Disabled . | . . . . Max in Single Turn . | . . . . Machines Sabotaged . | . . . . Garrisons Compromised . | . . . . Overloaded Fab Kills . | . . . . Fab Network Shutdowns . | . . . . Hacking | -11 -10 -9 -9 --------- Run | Scr Mat Mat Min Machines Accessed . | . . . . Terminals . | . . . . Fabricators . | . . . . Repair Stations . | . . . . Recycling Units . | . . . . Scanalyzers . | . . . . Garrison Access . | . . . . Total Hacks . | . . . . Successful . | . . . . Failed . | . . . . Catastrophic . | . . . . Database Lockouts . | . . . . Manual . | . . . . Terminals . | . . . . Fabricators . | . . . . Repair Stations . | . . . . Recycling Units . | . . . . Scanalyzers . | . . . . Garrison Access . | . . . . Terminal Hacks . | . . . . Fabricator Hacks . | . . . . Repair Station Hacks . | . . . . Recycling Unit Hacks . | . . . . Scanalyzer . | . . . . Garrison Access Hacks . | . . . . Unauthorized Hacks . | . . . . Terminals . | . . . . Fabricators . | . . . . Repair Stations . | . . . . Recycling Units . | . . . . Scanalyzers . | . . . . Garrison Access . | . . . . Data Cores Recovered . | . . . . Used . | . . . . Hacking Detections . | . . . . Full Trace Events . | . . . . Feedback Events . | . . . . Feedback Blocked . | . . . . Robot Schematics Acquired . | . . . . Robots Built . | . . . . Matter . | . . . . Time . | . . . . Total Robot Build Rating . | . . . . Part Schematics Acquired . | . . . . Parts Built . | . . . . Matter . | . . . . Time . | . . . . Total Part Build Rating . | . . . . Parts Repaired . | . . . . Time . | . . . . Parts Recycled . | . . . . Recycled Matter . | . . . . Retrieved Matter . | . . . . Retrieved Components . | . . . . Parts Scanalyzed . | . . . . Part Schematics Acquired . | . . . . Parts Damaged . | . . . . Bothacking | -11 -10 -9 -9 ------------ Run | Scr Mat Mat Min Used RIF Installer . | . . . . Robots Hacked . | . . . . Non-combat . | . . . . Combat . | . . . . Robot Hacks Applied . | . . . . Relay Couplers Released . | . . . . Robots Rewired . | . . . . Allies Hacked . | . . . . Hacks Repelled . | . . . . Allies | -11 -10 -9 -9 -------- Run | Scr Mat Mat Min Total Allies . | . . . . Largest Group . | . . . . Highest-Rated Group . | . . . . Highest-Rated Ally . | . . . . Total Orders . | . . . . Ally Attacks . | . . . . Total Damage . | . . . . Kills . | . . . . Allies Corrupted . | . . . . Allies Melted . | . . . . Intel | -11 -10 -9 -9 ------- Run | Scr Mat Mat Min Robot Analysis Total . | . . . . Derelict Logs Recovered 1 | . . . 1 Drone Launches . | . . . . Drone Recoveries . | . . . . Exploration | -11 -10 -9 -9 ------------- Run | Scr Mat Mat Min Turns Passed 1534 | 97 525 710 202 Spaces Moved 804 | 57 298 383 66 Core 22 | 11 . . 11 Treads 782 | 46 298 383 55 Legs . | . . . . Wheels . | . . . . Hover . | . . . . Flight . | . . . . Fastest Speed 50 | 50 160 160 160 Average Speed 162 | 152 160 160 191 Slowest Speed 350 | 200 160 160 350 Overloaded Moves . | . . . . Propulsion Burnouts . | . . . . Robots Hopped . | . . . . Cave-ins Triggered . | . . . . Exploration Rate (%) 28 | 5 51 32 24 Regions Visited 3 Branch Regions 1 Pre-discovered Areas . | . . . . Known Exits Taken . | . . . . Unknown Exits Taken 3 | 1 1 1 . Scrap Searched . | . . . . Spaces Dug . | . . . . Terrain Destroyed 43 | . 2 24 17 Melee . | . . . . Projectile . | . . . . AOE 43 | . 2 24 17 Actions | -11 -10 -9 -9 --------- Run | Scr Mat Mat Min Total 948 | 64 324 450 110 Wait 36 | . . 28 8 Move 801 | 56 297 382 66 Hop . | . . . . Pick Up 16 | 2 7 7 . Fast Attach 12 | 6 2 2 2 Attach 6 | . . 2 4 Detach 1 | . . 1 . Swap 11 | . 3 4 4 Drop 7 | . 4 3 . Fire 56 | . 11 21 24 Melee . | . . . . Ram . | . . . . Kick . | . . . . Crush 2 | . . . 2 Escape Stasis . | . . . . Rewire . | . . . . Trap . | . . . . Miscellaneous . | . . . . Route ------- -11/Scrapyard -10/Materials (discovered 2 exits: *Mat / [*Min]) -9/Materials (discovered 2 exits: [*Mat] / [*Min]) -9/Mines History --------- Turn | Location | Event 15 | -11/Scrapyard | Discovered new exit (range 15) 98 | -11/Scrapyard | Entered Materials 306 | -10/Materials | Build established: Mutant 399 | -10/Materials | Discovered new exit (range 7) 505 | -10/Materials | Discovered new exit (range 13) 623 | -10/Materials | Entered another Materials area 623 | -9/Materials | Evolved 2 slots: Utility x1, Weapon x1 843 | -9/Materials | Discovered new exit (range 3) 1289 | -9/Materials | Discovered new exit (range 11) 1333 | -9/Materials | Entered Mines 1417 | -9/Mines | Core integrity fell below 50% 1457 | -9/Mines | Core integrity fell below 20% 1489 | -9/Mines | Lost 9 parts (1p3n1u4w) 1535 | -9/Mines | Destroyed by G-47 Trooper with Particle Gun Last Messages --------------- 01425_ Acquired Lgt. Assault Rifle. 01434_ S-10 Pest destroyed. 01437_ Lgt. Assault Rifle destroyed. 01439_ Acquired 20 matter. 01445_ K-01 Serf collects debris. 01445_ Acquired Lgt. Assault Rifle. 01458_ Core Shielding destroyed. 01461_ S-10 Pest destroyed. 01463_ R-06 Scavenger collects Lgt. Assault Rifle. 01464_ S-10 Pest destroyed. 01466_ Acquired 20 matter. 01466_ R-06 Scavenger collects Lgt. Ion Engine. 01471_ R-06 Scavenger collects Flight Unit. 01473_ R-06 Scavenger collects Lgt. Ion Engine. 01479_ K-01 Serf collects debris. 01482_ Acquired derelict log, extracted data. Data stored: Storage entrances (x1). 01487_ K-01 Serf collects debris. 01516_ Lgt. Assault Rifle destroyed. 01518_ K-01 Serf collects debris. Map ----- +----------------------------------------------------+ | ????????????????# ####?????# | | ?????????????????# ###???## | | ????????????????## ###### # | | ???????????????## % | | ???????????????# ! | | ???????????????# ###### | | ???????????????# ## ##????? | | ???????????????## #### ###????? # | | ????????????????# ###?# #?#????? # | | ????????????????# #???# %#?????? # | | ????????????????# #?#?# #### ## | | ????????????????## ###??# ## #? | | ?????????????????###?????# #?? #? | | ??????????#??????????????# #########?? #? | | ?????????????????????????# #?????????? #? | | ??????????????????????#??# ##?????????? #? | | ?????????????????????????# ##??###?#??? ?# | | ?????????????#?#?????????# #??# ##??????? | | ?????????????#?#?????????# ### #??????? | | ?????????????????????#???# ## #??????? | | ??????????????????????#### #??????? | | ?????????????????????## ##??????? | | ?????????????????????# ####???????? | | ?????# ############## ##???? ?????? | | ?????# #????????"??? | | ?????# @ ##?????????? | | ???????######### #### #?????????? | | ???????????????# ???## g #??????? ?? | | ????????????#?? ?????# ## #????????? | | ?????????????? #??#??## #### #?????? ? | | ?????????????# ???????####?#? #???????? | | ?????????????#?##????????????# #???????? | | ???????????????????#?????????## #???????? | | ??????????????????????????????? #???????? | | ?????????????#????????????????? #???????? | | ???????????????????????????????? #???????? | | ???????????????????????????????? #???????? | | ?????????????????????????????????????????? | | ?????????????????????????????????????????? | | ?????????????????????????????????????????? | | ?????????????????????????????????????????? | | ?????????????????????????????????????????? | | ?????????????????????????????????????????? | | ?????????????????????????????????????????? | | ?????????????????????????????????????????? | | ?????????????????????????????????????????? | | ?????????????????????????????????????????? | | ?????????????????????????????????????????? | | ?????????????????????????????????????????? | | ?????????????????????????????????????????? | +----------------------------------------------------+ Best States ------------- Heat Dissipation 28 Energy Generation 14 Energy Capacity 450 Matter Stores 234 Matter Capacity 450 Sight Range 16 Terrain Scan Range 16 Terrain Scan Density 10 Core Shielding 20 Power Shielding 66 Utility Shielding 33 Evasion (%) 40 Recoil Reduction 2 Item Schematics ----------------- None Robot Schematics ------------------ None Fabricated ------------ Nothing Alien Tech Used ----------------- None Achievements -------------- None Challenges ------------ None Game ------ Seed SpikedSiegeExtractor Manual? 0 Play Time 00:21:49 Cumulative 6.6 hours Start 2019.11.01 @ 19:39:41 End 2019.11.01 @ 20:05:05 Sessions 1 Manual Loads 0 Difficulty Rogue Special Mode None Game No. 22 Rogue 22 Adventurer 0 Explorer 0 Win Type - Total 0 Types 0/0/0/0/0/0/0 Lore% 1 Gallery% 11 Achievement% 7 Wizard Run 0 Options --------- ASCII 0 Keyboard 1 Movement Numpad Keybinds 0 Fullscreen 1 Font 18/SmallcapsGlow Map View 76x50 Tactical HUD 1 Map Filters NONE Filters NONE Steam 1 RUN: 63220641-36e0-480b-8813-bb5271fbd156